{"text_format":"1","workbook":"xlsx","n_sheets":2,"sheets":["Tipsene","Stillingen"],"not_rendered":{"charts":0,"images":0,"macros":1,"external_links":0,"defined_names":0,"comments":0,"pivot_tables":0},"unopened":[],"bounds":{"document_bytes":16777216,"sheet_cells":100000,"rows_first":2000,"rows_last":500,"rows_between":2000,"halvings":0,"cell_chars":16384,"cell_head_chars":4096},"cells_cut":0,"cells_raw":0,"read":"whole","date_system":"1900"}

{"sheet":"Tipsene","index":0,"n_rows":51,"n_cols":42,"rows_kept":51,"cut":false,"hidden":false,"merged":[]}
["Øvelse","Dato","Anders Auestad",{"$f":"SUM(D2:D48)","v":0},"Anne Digernes",{"$f":"SUM(F2:F48)","v":0},"Audun Andre Tyssøy",{"$f":"SUM(H2:H48)","v":0},"Cato Thorsen",{"$f":"SUM(J2:J48)","v":0},"Einar Matre",{"$f":"SUM(L2:L48)","v":0},"Erlend Falkanger Matre",{"$f":"SUM(N2:N48)","v":0},"Geir Auestad",{"$f":"SUM(P2:P48)","v":0},"Håkon Austrheim",{"$f":"SUM(R2:R48)","v":0},"Herman Austrheim",{"$f":"SUM(T2:T48)","v":0},"Jørgen Voilås",{"$f":"SUM(V2:V48)","v":0},"Kjell Inge Ingebrigtsen",{"$f":"SUM(X2:X48)","v":0},"Leif Andre Brekke",{"$f":"SUM(Z2:Z48)","v":0},"Martin Austrheim",{"$f":"SUM(AB2:AB48)","v":0},"Nikolai Ellingsen",{"$f":"SUM(AD2:AD48)","v":0},"Oddve Solberg",{"$f":"SUM(AF2:AF48)","v":0},"Robert Aak Eide",{"$f":"SUM(AH2:AH48)","v":0},"Terje Osmundsen",{"$f":"SUM(AJ2:AJ48)","v":0},"Tobby Voilås",{"$f":"SUM(AL2:AL48)","v":0},"Toralf Geitung",{"$f":"SUM(AN2:AN48)","v":0},"Torgeir Katla",{"$f":"SUM(AP2:AP48)","v":0}]
["Alpint utfor menn","2026-02-07","Marco Odermatt",null,"Odermatt",null,"Paris",null,"Marco Odermatt",null,"Marco Odermatt",null,"Giovanni Franzoni",null,"Franjo Von Allmen",null,"Von Allmen",null,"Dominik Paris",null,"Franjo von allmenn",null,"Von Allmen",null,"Von Allmen",null,"Franjo Von Allmen",null,"Marco Odermatt",null,"Von Allmen",null,"Franjo von Allmenn",null,"Von Allmen",null,"Dominik Paris",null,"Marco Odermatt",null,"Franjo van Allmen"]
["Langrenn 20 km felles med skibytte kvinner","2026-02-07","Jessica Diggins",null,"Karlsson",null,"E.Anderson",null,"Maja Dahlqvist",null,"Jessie Diggins",null,"Jessica Diggins",null,"Diggins",null,"Diggins",null,"Jessie Diggins",null,"Jessica Diggins",null,"Karlson",null,"Diggins",null,"Ebba Anderson",null,"Ebba Andersson",null,"Jessica Diggins",null,"Jonna Sundling",null,"Karlsson",null,"Jonna Sundling",null,"Frida Karlsson",null,"Frida Karlsson"]
["Hopp normal bakke kvinner","2026-02-07","Nika Prevc",null,"Opseth",null,"S.Tokanashi",null,"Nika Prevc",null,"Nica Prevc",null,"Anna Odine Strøm",null,"Nika Prevc",null,"Maruyama",null,"Nika Prevc",null,"Katharina schmid",null,"Prevc",null,"Nika Prevc",null,"Nika Prevc",null,"Nika Prevc",null,"Nika Prevc",null,"Nica Prevc",null,"Prevc",null,"Nika Prevc",null,"Nika Prevc",null,"Nika Prevc"]
["Alpint utfor kvinner","2026-02-08","Lindsey Vonn",null,"Vonn",null,"Goggia",null,"Lindsey Vonn",null,"Lindsey Vonn",null,"Emma Aicher",null,"Sofia Goggia",null,"Goggia",null,"Sofia Goggia",null,"Lindsey Vonn",null,"Goggia",null,"Sofia Goggia",null,"Emma Aicher",null,"Sofia Goggia",null,"Lindsey Vonn",null,"Sofia Goggia",null,"Blanc",null,"Sofia Goggia",null,"Sofia Goggia",null,"Lindsey Vonn"]
["Langrenn 20 km felles med skibytte menn","2026-02-08","Johannes H. Klæbo",null,"Klæbo",null,"Klæbo",null,"Johannes Høsflot Klæbo",null,"Johannes Høsflot Klæbo",null,"Johannes Klæboe",null,"Klæbo",null,"Klæbo",null,"Johannes Høsflot Klæbo",null,"Emil Iversen",null,"Klæbo",null,"Klæbo",null,"Johannes Høsflot Klæbo",null,"Joannes Klæbo",null,"Johannes Høsflot Klæbo",null,"Harald Østberg Amundsen",null,"Klæbo",null,"Klæbo",null,"Johannes H. Klæbo",null,"Johannes Klæbo"]
["Skiskyting blandet stafett","2026-02-08","Svergie",null,"Frankrike",null,"Frankrike",null,"Frankrike",null,"Frankrike",null,"Frankrike",null,"France",null,"Frankrike",null,"Italia",null,"Frankrike",null,"Frankrike",null,"Frankrike",null,"Sverige",null,"Frankrike",null,"Frankrike",null,"Frankrike",null,"Sverige",null,"Frankrike",null,"Frankrike",null,"Frankrike"]
["Alpint lagkonkurranse menn","2026-02-09","Sveits",null,"Østerrike",null,"Sveits",null,"Østerrike",null,"Østerrike",null,"Sveits",null,"Norge",null,"Sveits",null,"Sveits",null,"Sveits",null,"Norge",null,"Sveits",null,"Sveits",null,"Norge",null,"Sveits",null,"Sveits",null,"Italia",null,"Frankrike",null,"Sveits",null,"Sveits"]
["Hopp normalbakke menn","2026-02-09","Roba Kobayashi",null,"Prevc",null,"Kraft",null,"Domen Prevc",null,"Domen Prevc",null,"Roba Kobayashi",null,"Domen Prevc",null,"Hoerl",null,"Domen Prevc",null,"Anze LaniZek",null,"Prevc",null,"Domen Prevc",null,"Domen Prevc",null,"Domen Prevc",null,"Domen Prevc",null,"Domen Prevc",null,"Prevc",null,"Domen Prevc",null,"Domen Prevc",null,"Ryoyu Kobayashi"]
["Langrenn sprint klassisk kvinner","2026-02-10","Kristine Stavås Skistad",null,"Svahn",null,"Skistad",null,"Kristine Stavås Skistad",null,"Jonna Sundling",null,"Kristine  Stavås Skistad",null,"Sundling",null,"Sundling",null,"Jasmi Joensuu",null,"Jonna Sundling",null,"Skistad",null,"Jonna Sundling",null,"Jonna Sundling",null,"Maja Dahlquist",null,"Johanna Hagström",null,"Jonna Sundling",null,"Svahn",null,"Joanna Sundling",null,"Jonna Sundling",null,"Linn Svahn"]
["Langrenn sprint klassisk menn","2026-02-10","Johannes Høsflot Klæbo",null,"Klæbo",null,"Klæbo",null,"Johannes Høsflot Klæbo",null,"Johannes Høsflot Klæbo",null,"Johannes Klæboe",null,"Klæbo",null,"Klæbo",null,"Johannes Høsflot Klæbo",null,"Johannes Klæbo",null,"Klæbo",null,"Klæbo",null,"Johannes Høsflot Klæbo",null,"Joannes Klæbo",null,"Johannes Høsflot Klæbo",null,"Johannes Høsflot Klæbo",null,"Klæbo",null,"Klæbo",null,"Johannes H. Klæbo",null,"Johannes Klæbo"]
["Skiskyting 20 km menn","2026-02-10","Eric Perrot",null,"Botn",null,"Samuelson",null,"Tommaso Giacomel",null,"Vetle Sjåstad Christiansen",null,"Vetle Sjåstad Christiansen",null,"Eric Perrot",null,"Perrot",null,"Eric Perrot",null,"Johan Olav Botn",null,"Perrot",null,"Eric Perrot",null,"Eric Perrot",null,"Tomasso Giacomel",null,"Eric Perrot",null,"Eric Perrot",null,"Lægreid",null,"Sturla Holm Lægreid",null,"Eric Perrot",null,"Sturla Holm Lægreid"]
["Alpint lagkonkurranse kvinner","2026-02-10","USA",null,"Usa",null,"USA",null,"USA",null,"USA",null,"Østerrrike",null,"Usa",null,"Sveits",null,"Usa",null,"Italia",null,"Italia",null,"USA",null,"USA",null,"Usa",null,"USA",null,"USA",null,"Sveits",null,"USA",null,"Østerrike",null,"Østerrike"]
["Curling mix par","2026-02-10","Storbritania",null,"Sverige",null,"Sverge",null,"Canada",null,"Italia",null,"Canada",null,"Italy ",null,"Italia",null,"Italia",null,"Estonia (Marie og Harry",null,"Italia",null,"Italia",null,"Italia",null,"Usa",null,"Italia",null,"Italia",null,"Italia",null,"Norge (de som krangler)",null,"Canada",null,"Skottland"]
["Hopp blandet lagkonkurranse","2026-02-10","Japan",null,"Norge",null,"Tyskland",null,"Østerrike",null,"Slovenia",null,"Østerrrike",null,"Slovenia",null,"Slovenia",null,"Slovenia",null,"Norge",null,"Slovenia",null,"Slovenia",null,"Slovenia",null,"Slovenia",null,"Slovenia",null,"Slovenia",null,"Slovenia",null,"Østerrike",null,"Slovenia",null,"Slovenia"]
["Alpint super-G menn","2026-02-11","Marco Odermatt",null,"Odermatt",null,"Odermatt",null,"Marco Odermatt",null,"Marco Odermatt",null,"Marco Odermatt",null,"Marco Odermatt",null,"Franzoni",null,"Marco Odermatt",null,"Marco Odermatt",null,"Odermatt",null,"Marco Odermatt",null,"Marco Odermatt",null,"Marco Odermatt",null,"Marco Odermatt",null,"Marco Odermatt",null,"Odermatt",null,"Marco Odermatt",null,"Marco Odermatt",null,"Marco Odermatt"]
["Kombinert normal  bakke/10 km menn","2026-02-11","Johannes Lamparter",null,"Lamparter",null,"Lambertner",null,"Johannes Lamparter",null,"Jens Lurås Oftebro",null,"Johannes Lamparter",null,"Johannes Lamparter",null,"Lamparter",null,"Jens Lurås Oftebro",null,"Vinzens Geigerr",null,"Oftebro",null,"Johannes Lamparter",null,"Jens Luraas Oftebro",null,"Johannes Lamparter",null,"Johannes Lamparter",null,"Johannes Lamparter",null,"J. Oftebro",null,"Jens L Oftebro",null,"Johannes Lamparter",null,"Jens Luraas Oftebro"]
["Skiskyting 15 km kvinner","2026-02-11","Lou Jeanmonnot",null,"Simon",null,"H.Øberg",null,"Lou Jeanmonnot",null,"Liza Vittozzi",null,"Lisa Vittozi",null,"Lou Jeanmonnot",null,"Jeanmonnot",null,"Suvi Minkkinen",null,"Lou Jeanmonnot",null,"Vittozi",null,"Lou Jeanmonnot",null,"Lou Jeanmonnot",null,"Lou Jeanmonnot",null,"Lou Jeanmonnot",null,"Lou Jeanmonnot",null,"Jeanmonnot",null,"Lou Jeanmonnot",null,"Lou Jeanmonnot",null,"Lou Jeanmonnot"]
["Alpint super-g kvinner","2026-02-12","Alice Robinson",null,"Vonn",null,"M.Blanc",null,"Sofia Goggia",null,"Malorie Blanc",null,"Sofia Goggia",null,"Sofia Goggia",null,"Goggia",null,"Sofia Goggia",null,"Sofia Goggia",null,"Goggia",null,"Sofia Goggia",null,"Sofia Goggia",null,"Lindsay Vonn",null,"Lara Gut-Behrami",null,"Sofia Goggia",null,"Goggia",null,"Sofia Goggia",null,"Malorie Blanc",null,"Sofia Goggia"]
["Langrenn 10 km kvinner","2026-02-12","Jessica Diggins",null,"Ribom",null,"Diggens",null,"Jessica Diggins",null,"Ebba Andersson",null,"Ebba Andersson",null,"Andersson",null,"Andersson",null,"Jessie Diggins",null,"Moa llar",null,"E. Andersson",null,"Ebba Anderson",null,"Frida Karlsson",null,"Maja Dahlquist",null,"Frida Karlsson",null,"Ebba Anderson",null,"Karlsson",null,"Jessica Diggins",null,"Ebba Andersson",null,"Ebba Andersson"]
["Langrenn 10 km menn","2026-02-13","Johannes H. Klæbo",null,"Hedegart",null,"Heggert",null,"Johannes Høsflot Klæbo",null,"Johannes Høsflot Klæbo",null,"Johannes Klæboe",null,"Hedegart",null,"Hedegart",null,"Einar Hedegart",null,"Einar Hedegart ",null,"Klæbo",null,"Einar Hedergart",null,"Harald Østberg Amundsen",null,"Einar Hedergart",null,"Johannes Høsflot Klæbo",null,"Johannes Høsflot Klæbo",null,"Klæbo",null,"Harald Ø Amundsen",null,"Einar Hedegart",null,"Einar Hedegart"]
["Skiskyting sprint menn","2026-02-13","Tommaso Giacomel",null,"Botn",null,"E.Perrot",null,"Johan-Olav Botn",null,"Eric Perrot",null,"Sebastian Samuelsson",null,"Tommaso Giacomel",null,"Giacomel",null,"Sebastian Samuelsson",null,"Sebastian Samulsson",null,"Giacomel",null,"Tommaso Giacomel",null,"Johannes Dale-Skjevdal",null,"Tomasso Giacomel",null,"Tommaso Giacomel",null,"Tommaso Giacomel",null,"Kristiansen",null,"Thomaso Giacomel",null,"Tommaso Giacomel",null,"Tommasi Giacomel"]
["Alpint storslalåm menn","2026-02-14","Lucas P. Braathen",null,"Kristoffersen",null,"Odermatt",null,"Marco Odermatt",null,"Marco Odermatt",null,"Marco Odermatt",null,"Marco Odermatt",null,"Odermatt",null,"Marco Odermatt",null,"Alexander Steen Olsen",null,"Odermatt",null,"Marco Odermatt",null,"Marco Odermatt",null,"Marco Odermatt",null,"Marco Odermatt",null,"Marco Odermatt",null,"Meillard",null,"Marco Odermatt",null,"Marco Odermatt",null,"Loic Meillard"]
["Langrenn stafett kvinner","2026-02-14","Sverige",null,"Sverige",null,"Sverge",null,"Sverige",null,"Sverige",null,"Sverige",null,"Sverige",null,"Sverige",null,"Sverige",null,"Sverige",null,"Sverige",null,"Sverige",null,"Sverige",null,"Sverige",null,"Sverige",null,"Sverige",null,"Sverige",null,"Sverige",null,"Sverige",null,"Sverige"]
["Skiskyting sprint kvinner","2026-02-14","Hanna Öberg",null,"Jeanmonnot",null,"Wiere",null,"Sverige",null,"Hanna Øberg",null,"Lou Jeanmonnot",null,"Elvira Øberg",null,"Elvira Øberg",null,"Justine Braisaz Bouchet",null,"Elivra Øberg",null,"E. Øberg",null,"Elvira Øberg",null,"Hanna Øberg",null,"Elvira Øberg",null,"Lou Jeanmonnot",null,"Lou Jeanmonnot",null,"H.Øberg",null,"Elvira Øberg",null,"Justine Braisaz-Bouchet",null,"Elvira Øberg"]
["Hopp stor bakke menn","2026-02-14","Ryoyu Kobayashi",null,"Prevc",null,"Kraft",null,"Domen Prevc",null,"Domen Prevc",null,"Domen Prevc",null,"Domen Prevc",null,"Prevc",null,"Domen Prevc",null,"Domen Prevc",null,"Prevc",null,"Domen Prevc",null,"Domen Prevc",null,"Domen Prevc",null,"Domen Prevc",null,"Domen Prevc",null,"Prevc",null,"Domen Prevc",null,"Domen Prevc",null,"Domen Prevc"]
["Alpint storslalåm kvinner","2026-02-15","Julia Scheib",null,"Shiffrin",null,"Hektor",null,"Julia Scheib",null,"Julia Scheib",null,"Julia Scheib",null,"Julia Scheib",null,"Scheib",null,"Mikaela Shiffrin",null,"Alice Robinson",null,"Scheib",null,"Julia Scheib",null,"Sara Hector",null,"Mikaela Shiffrin",null,"Federica Brignone",null,"Julia Scheib",null,"Shiffrin",null,"Julia Scheib",null,"Mikaela Shiffrin",null,"Alice Robinson"]
["Skiskyting jaktstart menn","2026-02-15","Tommaso Giacomel",null,"Botn",null,"Botn",null,"Johan-Olav Botn",null,"Eric Perrot",null,"Johan Olav Botn",null,"Eric Perrot",null,"Samuelsson",null,"Eric Perrot",null,"Tommaso Giacomel",null,"Giacomel",null,"Eric Perrot",null,"Johannes Dale-Skjevdal",null,"Eric Perrot",null,"Eric Perrot",null,"Eric Perrot",null,"Samuelsson",null,"Johannes Dale ",null,"Eric Perrot",null,"Sturla Holm Lægreid"]
["Langrenn stafett menn","2026-02-15","Norge",null,"Norge",null,"Norge",null,"Norge",null,"Norge",null,"Norge",null,"Norge",null,"Norge",null,"Norge",null,"Norge",null,"Norge",null,"Norge",null,"Norge",null,"Norge",null,"Norge",null,"Norge",null,"Norge",null,"Norge",null,"Norge",null,"Norge"]
["Skiskyting jaktstart kvinner","2026-02-15","Hanna Öberg",null,"Simon",null,"Simone",null,"Suvi Minkkinen",null,"Maren Kirkeeide",null,"Elvira Øberg",null,"Lou Jeanmonnot",null,"Hanna Øberg",null,"Lou Jeanmonnot",null,"Elvira Øberg",null,"E. Øberg",null,"Lou Jeanmonnot",null,"Lou Jeanmonnot",null,"Hanna Øberg",null,"Lou Jeanmonnot",null,"Lou Jeanmonnot",null,"Kirkeide",null,"Lou Jeanmonnot",null,"Lou Jeanmonnot",null,"Lou Jeanmonnot"]
["Hopp stor bakke kvinner","2026-02-15","Nozomi Maruyama",null,"Kvandal",null,"Nika Prevc",null,"Anna Odine Strøm",null,"Eirin Maria Kvandal",null,"Nika Prevc",null,"Nika Prevc",null,"Prevc",null,"Nika Prevc",null,"Nica Prevc",null,"N. Prevc",null,"Nika Prevc",null,"Nika Prevc",null,"Nika Prevc",null,"Nika Prevc",null,"Nica Prevc",null,"Prevc",null,"Nika Prevc",null,"Nika Prevc",null,"Nika Prevc"]
["Alpint slalåm menn","2026-02-16","Atle Lie McGrath",null,"Kristoffersen",null,"Haugan",null,"Lucas Bråthen",null,"Atle Lie McGrath",null,"Atle Lie McGrath",null,"Lucas Pinheiro Braathen",null,"Meillard",null,"Atle Lie McGrath",null,"Loic Meillard",null,"Bråten",null,"Atle Lie McGrath",null,"Lucas Braathen",null,"Henrik Kristoffersen",null,"Henrik Kristoffersen",null,"Noel Clement",null,"Haugan",null,"Henrik Kristoffersen",null,"Loic Meillard",null,"Timon Haugan"]
["Hopp lag menn","2026-02-16","Østerrike",null,"Norge",null,"Østerrike",null,"Østerrike",null,"Østerrike",null,"Slovenia",null,"Slovenia",null,"Slovenia",null,"Østerrike",null,"Slovenia",null,"Slovenia",null,"Slovenia",null,"Østerrike",null,"Østerrike",null,"Slovenia",null,"Slovenia",null,"Japan",null,"Østerrike",null,"Slovenia",null,"Østerrike"]
["Kombinert stor bakke/10 km menn","2026-02-17","Johannes Lamparter",null,"Lamparter",null,"Lambertner",null,"Johannes Lamparter",null,"Vinzenz Geiger",null,"Julian Schmid",null,"Johannes Lamparter",null,"Lamparter",null,"Jens Lurås Oftebro",null,"Jens L Oftebro",null,"Lamparter",null,"Johannes Lamparter",null,"Johannes Lamparter",null,"Einar Lurås Oftebro",null,"Johannes Lamparter",null,"Johannes Lamparter",null,"Lamparter",null,"Jens L Oftebro",null,"Johannes Lamparter",null,"Julian Schmid"]
["Skiskyting stafett menn","2026-02-17","Norge",null,"Norge",null,"Frankrike",null,"Norge",null,"Norge",null,"Norge",null,"Norway",null,"Frankrike",null,"Norge",null,"Tyskland",null,"Frankrike",null,"Norge",null,"Norge",null,"Frankrike",null,"Frankrike",null,"Frankrike",null,"Norge",null,"Norge",null,"Norge",null,"Norge"]
["Langrenn lagsprint kvinner","2026-02-18","Sverige",null,"Sverige",null,"Sverge",null,"Sverige",null,"Sverige",null,"Sverige",null,"Sverige",null,"Sverige",null,"Sverige",null,"Sverige",null,"Sverige",null,"Sverige",null,"Sverige",null,"Sverige",null,"Sverige",null,"Sverige",null,"Sverige",null,"Sverige",null,"Sverige",null,"Sverige"]
["Langrenn lagsprint menn","2026-02-18","Norge",null,"Norge",null,"Norge",null,"Norge",null,"Norge",null,"Norge",null,"Norge",null,"Norge",null,"Norge",null,"Norge",null,"Norge",null,"Norge",null,"Norge",null,"Norge",null,"Norge",null,"Norge",null,"Norge",null,"Norge",null,"Norge",null,"Norge"]
["Alpint slalåm kvinner","2026-02-18","Mikaela Shiffrin",null,"Shiffrin",null,"Shifrinn",null,"Mikaela Shiffrin",null,"Camille Rast",null,"Mikaela Shiffrin",null,"Mikaela Shiffrin",null,"Shiffrin",null,"Mikaela Shiffrin",null,"Camille Rast",null,"Shiffrin",null,"Mikaela Shiffrin",null,"Mikaela Shiffrin",null,"Mikaela Shiffrin",null,"Mikaela Shiffrin",null,"Mikaela Shiffrin",null,"Shiffrin",null,"Michaela Shifrin",null,"Mikaela Shiffrin",null,"Mikaela Shiffrin"]
["Skiskyting stafett kvinner","2026-02-18","Sverige",null,"Frankrike",null,"Frankrike",null,"Frankrike",null,"Frankrike",null,"Frankrike",null,"France",null,"Frankrike",null,"Frankrike",null,"Sverige",null,"Frankrike",null,"Frankrike",null,"Sverige",null,"Frankrike",null,"Sverige",null,"Frankrike",null,"Frankrike",null,"Frankrike",null,"Frankrike",null,"Frankrike"]
["Kombinert lagsprint menn","2026-02-19","Østerrike",null,"Tyskland",null,"Norge",null,"Norge",null,"Tyskland",null,"Østerrrike",null,"Østerrike",null,"Østerrike",null,"Norge",null,"Østerike",null,"Østerrike",null,"Østerrike",null,"Tyskland",null,"Østerrike",null,"Østerrike",null,"Østerrike",null,"Østerrike",null,"Norge",null,"Norge",null,"Østerrike"]
["Ishockey kvinner","2026-02-19","USA",null,"Canada",null,"Canada",null,"Canada",null,"USA",null,"USA",null,"USA",null,"USA",null,"Canada",null,"USA",null,"USA",null,"USA",null,"USA",null,"Usa",null,"Canada",null,"USA",null,"Canada",null,"Østerrike",null,"USA",null,"USA"]
["Skiskyting fellesstart menn","2026-02-20","Eric Perrot",null,"Botn",null,"Botn",null,"Johan-Olav Botn",null,"Eric Perrot",null,"Eric Perrot",null,"Eric Perrot",null,"Perrot",null,"Quentin Fillon Maillet",null,"Eric Perrot",null,"Samuelson",null,"Eric Perrot",null,"Tommaso Giacomel",null,"Eric Perrot",null,"Tommaso Giacomel",null,"Eric Perrot",null,"Giacommel",null,"Eric Perrot",null,"Eric Perrot",null,"Sebastian Samuelsson"]
["Langrenn 50 km fellesstart menn","2026-02-21","Johannes H. Klæbo",null,"Amundsen",null,"Mylback",null,"Johannes Høsflot Klæbo",null,"Johannes Høsflot Klæbo",null,"Mattis Stenshagen",null,"Nyenget",null,"Nyenget",null,"Johannes Høsflot Klæbo",null,"William Poromaa",null,"Klæbo",null,"Nyenget",null,"Johannes Høsflot Klæbo",null,"Joannes Klæbo",null,"Johannes Høsflot Klæbo",null,"Martin Nyenget",null,"Klæbo",null,"Klæbo",null,"Johannes H. Klæbo",null,"Johannes Klæbo"]
["Skiskyting fellesstart kvinner","2026-02-21","Lou Jeanmonnot",null,"Jeanmonnot",null,"Simone",null,"Lou Jeanmonnot",null,"Maren Kirkeeide",null,"Maren Kirkeeide",null,"Lou Jeanmonnot",null,"Jeanmonnot",null,"Maren Kirkeeide",null,"Elivra Øberg",null,"Jeanmonnet",null,"Lou Jeanmonnot",null,"Maren Kirkeide",null,"Dorothea Wierer",null,"Lou Jeanmonnot",null,"Lou Jeanmonnot",null,"Jeanmonnot",null,"Julia Simon ",null,"Julia Simon",null,"Maren Hjelmeseth Kirkeeide"]
["Curling menn","2026-02-21","Storbritania",null,"USA",null,"Sverge",null,"Norge",null,"Storbritania",null,"Storbrittania",null,"Great Britain",null,"Storbritannia",null,"Storbritannia",null,"Storbritannia (Bruce Mouat)",null,"Canada",null,"Storbritannia",null,"Storbrittania",null,"Canada",null,"Storbritannia",null,"Storbritannia",null,"Canada",null,"Storbritannia  (bruce)",null,"Sveits",null,"Canada"]
["Langrenn 50 km fellesstart kvinner","2026-02-22","Jessica Diggins",null,"Slind",null,"Diggens",null,"Jessica Diggins",null,"Frida Karlsson",null,"Frida Karlsson",null,"Karlsson",null,"Øyre-Slind",null,"Astrid Øyre Slind",null,"Frida Karrlson",null,"E. Anderson",null,"Astrid Øyre Slind",null,"Ebba Andersson",null,"Ebba Andersson",null,"Frida Karlsson",null,"Ebba Anderson",null,"Slind",null,"Frida Karlsson",null,"Frida Karlsson",null,"Astrid Øyre Slind"]
["Curling  kvinner","2026-02-22","Canada",null,"USA",null,"USA",null,"Canada",null,"Canada",null,"Canada",null,"Canada",null,"Canada",null,"Canada",null,"Canada",null,"Canada",null,"Canada",null,"Sveits",null,"Usa",null,"Canada",null,"Canada",null,"Canada",null,"Canada",null,"Canada",null,"Sveits"]
["Ishockey menn","2026-02-22","Canada",null,"USA",null,"Finland",null,"Sveits",null,"Canada",null,"Canada",null,"Canada",null,"Canada",null,"Canada",null,"USA",null,"Canada",null,"Canada",null,"Canada",null,"Canada",null,"Canada",null,"Canada",null,"Canada",null,"Canada",null,"USA",null,"Canada"]
["Antall øvelser tatt med i utregningen:",{"$f":"COUNT(B2:B48)","v":47},null,{"$f":"COUNT(D2:D48)","v":0},null,{"$f":"COUNT(F2:F48)","v":0},null,{"$f":"COUNT(H2:H48)","v":0},null,{"$f":"COUNT(J2:J48)","v":0},null,{"$f":"COUNT(L2:L48)","v":0},null,{"$f":"COUNT(N2:N48)","v":0},null,{"$f":"COUNT(P2:P48)","v":0},null,{"$f":"COUNT(R2:R48)","v":0},null,{"$f":"COUNT(T2:T48)","v":0},null,{"$f":"COUNT(V2:V48)","v":0},null,{"$f":"COUNT(X2:X48)","v":0},null,{"$f":"COUNT(Z2:Z48)","v":0},null,{"$f":"COUNT(AB2:AB48)","v":0},null,{"$f":"COUNT(AD2:AD48)","v":0},null,{"$f":"COUNT(AF2:AF48)","v":0},null,{"$f":"COUNT(AH2:AH48)","v":0},null,{"$f":"COUNT(AJ2:AJ48)","v":0},null,{"$f":"COUNT(AL2:AL48)","v":0},null,{"$f":"COUNT(AN2:AN48)","v":0},null,{"$f":"COUNT(AP2:AP48)","v":0}]
[]
["* To deltagere ved navn \"Bouchet\" i skiskyting 15 km, og det var den som var nederst i World Cup som kom på andreplass. Dermed får Morten 0 poeng."]

{"sheet":"Stillingen","index":1,"n_rows":21,"n_cols":6,"rows_kept":21,"cut":false,"hidden":false,"merged":[]}
["Nr.","Navn","P."]
[{"$f":"RANK(C2,C2:C21)","v":1},{"$f":"Tipsene!C1","v":"Anders Auestad"},{"$f":"Tipsene!D1","v":0},null,null,"Du må selvsagt legge inn resultatene i tabellen på den første arkfanen for at dette skal virke."]
[{"$f":"RANK(C3,C2:C21)","v":1},{"$f":"Tipsene!E1","v":"Anne Digernes"},{"$f":"Tipsene!F1","v":0}]
[{"$f":"RANK(C4,C2:C21)","v":1},{"$f":"Tipsene!G1","v":"Audun Andre Tyssøy"},{"$f":"Tipsene!H1","v":0}]
[{"$f":"RANK(C5,C2:C21)","v":1},{"$f":"Tipsene!I1","v":"Cato Thorsen"},{"$f":"Tipsene!J1","v":0}]
[{"$f":"RANK(C6,C2:C21)","v":1},{"$f":"Tipsene!K1","v":"Einar Matre"},{"$f":"Tipsene!L1","v":0}]
[{"$f":"RANK(C7,C2:C21)","v":1},{"$f":"Tipsene!M1","v":"Erlend Falkanger Matre"},{"$f":"Tipsene!N1","v":0}]
[{"$f":"RANK(C8,C2:C21)","v":1},{"$f":"Tipsene!O1","v":"Geir Auestad"},{"$f":"Tipsene!P1","v":0}]
[{"$f":"RANK(C9,C2:C21)","v":1},{"$f":"Tipsene!S1","v":"Herman Austrheim"},{"$f":"Tipsene!T1","v":0}]
[{"$f":"RANK(C10,C2:C21)","v":1},{"$f":"Tipsene!Q1","v":"Håkon Austrheim"},{"$f":"Tipsene!R1","v":0},null,null,"Du får 7 poeng om ditt tips i en øvelse kommer på førsteplass."]
[{"$f":"RANK(C11,C2:C21)","v":1},{"$f":"Tipsene!U1","v":"Jørgen Voilås"},{"$f":"Tipsene!V1","v":0},null,null,"Andreplass gir 5 poeng."]
[{"$f":"RANK(C12,C2:C21)","v":1},{"$f":"Tipsene!W1","v":"Kjell Inge Ingebrigtsen"},{"$f":"Tipsene!X1","v":0},null,null,"Tredjeplass 3 poeng."]
[{"$f":"RANK(C13,C2:C21)","v":1},{"$f":"Tipsene!Y1","v":"Leif Andre Brekke"},{"$f":"Tipsene!Z1","v":0},null,null,"Fjerde- til sjetteplass gir 1 poeng."]
[{"$f":"RANK(C14,C2:C21)","v":1},{"$f":"Tipsene!AA1","v":"Martin Austrheim"},{"$f":"Tipsene!AB1","v":0}]
[{"$f":"RANK(C15,C2:C21)","v":1},{"$f":"Tipsene!AC1","v":"Nikolai Ellingsen"},{"$f":"Tipsene!AD1","v":0}]
[{"$f":"RANK(C16,C2:C21)","v":1},{"$f":"Tipsene!AE1","v":"Oddve Solberg"},{"$f":"Tipsene!AF1","v":0}]
[{"$f":"RANK(C17,C2:C21)","v":1},{"$f":"Tipsene!AG1","v":"Robert Aak Eide"},{"$f":"Tipsene!AH1","v":0}]
[{"$f":"RANK(C18,C2:C21)","v":1},{"$f":"Tipsene!AI1","v":"Terje Osmundsen"},{"$f":"Tipsene!AJ1","v":0}]
[{"$f":"RANK(C19,C2:C21)","v":1},{"$f":"Tipsene!AK1","v":"Tobby Voilås"},{"$f":"Tipsene!AL1","v":0}]
[{"$f":"RANK(C20,C2:C21)","v":1},{"$f":"Tipsene!AM1","v":"Toralf Geitung"},{"$f":"Tipsene!AN1","v":0}]
[{"$f":"RANK(C21,C2:C21)","v":1},{"$f":"Tipsene!AO1","v":"Torgeir Katla"},{"$f":"Tipsene!AP1","v":0}]